Workbook

Sheet Pasiūlymas
A1: Perkantysis subjektas, kuriam teikiamas pasiūlymas: | C1: VŠĮ Kauno klinikinė ligoninė
B3: PASIŪLYMAS
B4: Ortopedinių traumatologinių implantų pirkimas
A6: Data: | B6: 2019.07.12
A7: Nr.:
A8: Vieta: | B8: Vilnius
A10: Tiekėjo arba tiekėjų grupės narių pavadinimas (-ai) | C10: UAB Kristameda
A11: Tiekėjo arba tiekėjo grupės narių juridinio asmens kodas (-ai) (tuo atveju, jei pasiūlymą teikia fizinis asmuo - verslo pažymėjimo Nr. ar pan.) | C11: 301245735
A12: Tiekėjo arba tiekėjo grupės narių PVM mokėtojo kodas (-ai) | C12: LT100003755213
A13: Tiekėjų grupės narys, atstovaujantis arba vadovaujantis tiekėjų grupei (pildoma, jei pasiūlymą teikia tiekėjų grupė)
A14: Tiekėjo valdymo ar priežiūros organo narys (-iai) ar kitas asmuo (-ys), turintis (-ys) teisę atstovauti tiekėjui ar jį kontroliuoti, jo vardu priimti sprendimą, sudaryti sandorį
A15: Tiekėjo arba atstovaujančio tiekėjų grupės nario adresas, telefono numeris, fakso numeris, el. paštas | C15: Treniotos g. 33, 08115 Vilnius; 8 600 68931; kristameda@gmail.com
A16: Tiekėjo arba atstovaujančio tiekėjų grupės nario banko pavadinimas, banko kodas, sąskaitos Nr. | C16: LT157044060008231151, AB SEB bankas
A17: Asmens, įgalioto pasirašyti sutartį, vardas, pavardė, pareigos | C17: Direktorius Gintaras Vaitkevičius
A18: Asmens, atsakingo už pirkimą, vardas, pavardė, telefono numeris, el. paštas | C18: Gintaras Vaitkevičius, 8 600 68931, kristameda@gmail.com
A24: Siūlomas pirkimo objektas visiškai atitinka pirkimo sąlygose nustatytus reikalavimus ir jo kaina yra:
A28: Nr. | B28: Pavadinimas | C28: Maksimalus kiekis | D28: Mato vienetas | E28: Vieneto kaina be PVM, Eur | F28: Suma be PVM, Eur | G28: Siūlomos prekės pavadinimas, gamintojas, prekės kodas, katalogo psl. | H28: Siūlomo produkto parametrai
A1069: 3. | B1069: Plokštelės, sraigtai, instrumentai
A1070: 3.1. | B1070: T formos užrakinama kompresinė plokštelė, įstrižu kampu, pagaminta iš titano. 5 užrakinamos kiaurymės “galvoje”, vienoje eilėje. Fiksuojama Ø 2,7 mm užrakinamais ir Ø 2,7 mm kortikaliniais sraigtais. | C1070: 6 | D1070: vnt | E1070: 115.43 | F1070: =IF(ISBLANK(E1070),"", PRODUCT(C1070,E1070)) -> 692.58 | G1070: 22572103, 22572104 katalogas 1, p. 73, Changzhou Kanghui Medical Innovation Co., Ltd. a Medtronic company | H1070: T formos užrakinama kompresinė plokštelė, įstrižu kampu, pagaminta iš titano. 5 užrakinamos kiaurymės “galvoje”, vienoje eilėje. Fiksuojama Ø 2,7 mm užrakinamais ir Ø 2,7 mm kortikaliniais sraigtais. Dešinės pusės, 3, 4 kiaurymių
A1071: 3.1.1. | B1071: Dešinės pusės, 3-4 kiaurymių
A1072: 3.2. | B1072: T formos užrakinama kompresinė plokštelė, įstrižu kampu, pagaminta iš titano. 5 užrakinamos kiaurymės “galvoje”, vienoje eilėje. Fiksuojama Ø 2,7 mm užrakinamais ir Ø 2,7 mm kortikaliniais sraigtais. | C1072: 4 | D1072: vnt | E1072: 115.43 | F1072: =IF(ISBLANK(E1072),"", PRODUCT(C1072,E1072)) -> 461.72 | G1072: 22572105, 22572106, katalogas 1, p. 73, Changzhou Kanghui Medical Innovation Co., Ltd. a Medtronic company | H1072: T formos užrakinama kompresinė plokštelė, įstrižu kampu, pagaminta iš titano. 5 užrakinamos kiaurymės “galvoje”, vienoje eilėje. Fiksuojama Ø 2,7 mm užrakinamais ir Ø 2,7 mm kortikaliniais sraigtais. Dešinės pusės, 5, 6 kiaurymių
A1073: 3.2.1. | B1073: Dešinės pusės, 5-6 kiaurymių
A1074: 3.3. | B1074: T formos užrakinama kompresinė plokštelė, įstrižu kampu, pagaminta iš titano. 5 užrakinamos kiaurymės “galvoje”, vienoje eilėje. Fiksuojama Ø 2,7 mm užrakinamais ir Ø 2,7 mm kortikaliniais sraigtais. | C1074: 6 | D1074: vnt | E1074: 115.43 | F1074: =IF(ISBLANK(E1074),"", PRODUCT(C1074,E1074)) -> 692.58 | G1074: 22572203, 22572204 katalogas 1, p. 73, Changzhou Kanghui Medical Innovation Co., Ltd. a Medtronic company | H1074: T formos užrakinama kompresinė plokštelė, įstrižu kampu, pagaminta iš titano. 5 užrakinamos kiaurymės “galvoje”, vienoje eilėje. Fiksuojama Ø 2,7 mm užrakinamais ir Ø 2,7 mm kortikaliniais sraigtais. Kairės pusės, 3, 4 kiaurymių
A1075: 3.3.1. | B1075: Kairės pusės, 3-4 kiaurymių
A1076: 3.4. | B1076: T formos užrakinama kompresinė plokštelė, įstrižu kampu, pagaminta iš titano. 5 užrakinamos kiaurymės “galvoje”, vienoje eilėje. Fiksuojama Ø 2,7 mm užrakinamais ir Ø 2,7 mm kortikaliniais sraigtais. | C1076: 4 | D1076: vnt | E1076: 115.43 | F1076: =IF(ISBLANK(E1076),"", PRODUCT(C1076,E1076)) -> 461.72 | G1076: 22572205, 22572206 katalogas 1, p. 73, Changzhou Kanghui Medical Innovation Co., Ltd. a Medtronic company | H1076: T formos užrakinama kompresinė plokštelė, įstrižu kampu, pagaminta iš titano. 5 užrakinamos kiaurymės “galvoje”, vienoje eilėje. Fiksuojama Ø 2,7 mm užrakinamais ir Ø 2,7 mm kortikaliniais sraigtais. Kairės pusės, 5, 6 kiaurymių
A1077: 3.4.1. | B1077: Kairės pusės, 5-6 kiaurymių
A1078: 3.5. | B1078: Stipinkaulio distalinio galo šoninė užrakinama plokštelė, pagaminta iš titano. Fiksuojama Ø 2,7 mm užrakinamais ir Ø 2,7 mm kortikaliniais sraigtais. | C1078: 2 | D1078: vnt | E1078: 105.11 | F1078: =IF(ISBLANK(E1078),"", PRODUCT(C1078,E1078)) -> 210.22 | G1078: 22555005, katalogas 1, p. 72, Changzhou Kanghui Medical Innovation Co., Ltd. a Medtronic company | H1078: Stipinkaulio distalinio galo šoninė užrakinama plokštelė, pagaminta iš titano. Fiksuojama Ø 2,7 mm užrakinamais ir Ø 2,7 mm kortikaliniais sraigtais. 5 kiaurymių
A1079: 3.5.1. | B1079: 5 kiaurymių
A1080: 3.6. | B1080: Stipinkaulio distalinio galo šoninė užrakinama plokštelė, pagaminta iš titano. Fiksuojama Ø 2,7 mm užrakinamais ir Ø 2,7 mm kortikaliniais sraigtais. | C1080: 2 | D1080: vnt | E1080: 105.11 | F1080: =IF(ISBLANK(E1080),"", PRODUCT(C1080,E1080)) -> 210.22 | G1080: 22555006, katalogas 1, p. 72, Changzhou Kanghui Medical Innovation Co., Ltd. a Medtronic company | H1080: Stipinkaulio distalinio galo šoninė užrakinama plokštelė, pagaminta iš titano. Fiksuojama Ø 2,7 mm užrakinamais ir Ø 2,7 mm kortikaliniais sraigtais. 6 kiaurymių
A1081: 3.6.1. | B1081: 6 kiaurymių
A1082: 3.7. | B1082: Stipinkaulio distalinio galo dorsalinė užrakinama kompresinė plokštelė, 90° L formos, pagaminta iš titano. 2 kiaurymės distalinėje dalyje. Fiksuojama Ø 2,7 mm užrakinamais ir Ø 2,7 mm kortikaliniais sraigtais. | C1082: 5 | D1082: vnt | E1082: 104.95 | F1082: =IF(ISBLANK(E1082),"", PRODUCT(C1082,E1082)) -> 524.75 | G1082: 22558203, katalogas 1, p. 73, Changzhou Kanghui Medical Innovation Co., Ltd. a Medtronic company | H1082: Stipinkaulio distalinio galo dorsalinė užrakinama kompresinė plokštelė, 90° L formos, pagaminta iš titano. 2 kiaurymės distalinėje dalyje. Fiksuojama Ø 2,7 mm užrakinamais ir Ø 2,7 mm kortikaliniais sraigtais. Kairės pusės, 3 kiaurymių
A1083: 3.7.1. | B1083: Kairės pusės, 3 kiaurymių
A1084: 3.8. | B1084: Stipinkaulio distalinio galo dorsalinė užrakinama kompresinė plokštelė, 90° L formos, pagaminta iš titano. 2 kiaurymės distalinėje dalyje. Fiksuojama Ø 2,7 mm užrakinamais ir Ø 2,7 mm kortikaliniais sraigtais. | C1084: 12 | D1084: vnt | E1084: 104.95 | F1084: =IF(ISBLANK(E1084),"", PRODUCT(C1084,E1084)) -> 1259.4 | G1084: 22558204, katalogas 1, p. 73, Changzhou Kanghui Medical Innovation Co., Ltd. a Medtronic company | H1084: Stipinkaulio distalinio galo dorsalinė užrakinama kompresinė plokštelė, 90° L formos, pagaminta iš titano. 2 kiaurymės distalinėje dalyje. Fiksuojama Ø 2,7 mm užrakinamais ir Ø 2,7 mm kortikaliniais sraigtais. Kairės pusės, 4 kiaurymių
A1085: 3.8.1. | B1085: Kairės pusės, 4 kiaurymių
A1086: 3.9. | B1086: Stipinkaulio distalinio galo dorsalinė užrakinama kompresinė plokštelė, 90° L formos, pagaminta iš titano. 2 kiaurymės distalinėje dalyje. Fiksuojama Ø 2,7 mm užrakinamais ir Ø 2,7 mm kortikaliniais sraigtais. | C1086: 5 | D1086: vnt | E1086: 104.95 | F1086: =IF(ISBLANK(E1086),"", PRODUCT(C1086,E1086)) -> 524.75 | G1086: 22558103, katalogas 1, p. 73, Changzhou Kanghui Medical Innovation Co., Ltd. a Medtronic company | H1086: Stipinkaulio distalinio galo dorsalinė užrakinama kompresinė plokštelė, 90° L formos, pagaminta iš titano. 2 kiaurymės distalinėje dalyje. Fiksuojama Ø 2,7 mm užrakinamais ir Ø 2,7 mm kortikaliniais sraigtais. Dešinės pusės, 3 kiaurymių
A1087: 3.9.1. | B1087: Dešinės pusės, 3 kiaurymių
A1088: 3.10. | B1088: Stipinkaulio distalinio galo dorsalinė užrakinama kompresinė plokštelė, 90° L formos, pagaminta iš titano. 2 kiaurymės distalinėje dalyje. Fiksuojama Ø 2,7 mm užrakinamais ir Ø 2,7 mm kortikaliniais sraigtais. | C1088: 12 | D1088: vnt | E1088: 104.95 | F1088: =IF(ISBLANK(E1088),"", PRODUCT(C1088,E1088)) -> 1259.4 | G1088: 22558104, katalogas 1, p. 73, Changzhou Kanghui Medical Innovation Co., Ltd. a Medtronic company | H1088: Stipinkaulio distalinio galo dorsalinė užrakinama kompresinė plokštelė, 90° L formos, pagaminta iš titano. 2 kiaurymės distalinėje dalyje. Fiksuojama Ø 2,7 mm užrakinamais ir Ø 2,7 mm kortikaliniais sraigtais. Dešinės pusės, 4 kiaurymių
A1089: 3.10.1. | B1089: Dešinės pusės, 4 kiaurymių
A1090: 3.11. | B1090: Stipinkaulio distalinio galo dorsalinė užrakinama kompresinė plokštelė, 106° L formos, pagaminta iš titano. 3 kiaurymės distalinėje dalyje. Fiksuojama Ø 2,7 mm užrakinamais ir Ø 2,7 mm kortikaliniais sraigtais. | C1090: 3 | D1090: vnt | E1090: 104.95 | F1090: =IF(ISBLANK(E1090),"", PRODUCT(C1090,E1090)) -> 314.85 | G1090: 22556203, katalogas 1, p. 72, Changzhou Kanghui Medical Innovation Co., Ltd. a Medtronic company | H1090: Stipinkaulio distalinio galo dorsalinė užrakinama kompresinė plokštelė, 106° L formos, pagaminta iš titano. 3 kiaurymės distalinėje dalyje. Fiksuojama Ø 2,7 mm užrakinamais ir Ø 2,7 mm kortikaliniais sraigtais. Kairės pusės, 3 kiaurymių
A1091: 3.11.1. | B1091: Kairės pusės, 3 kiaurymių
A1092: 3.12. | B1092: Stipinkaulio distalinio galo dorsalinė užrakinama kompresinė plokštelė, 106° L formos, pagaminta iš titano. 3 kiaurymės distalinėje dalyje. Fiksuojama Ø 2,7 mm užrakinamais ir Ø 2,7 mm kortikaliniais sraigtais. | C1092: 2 | D1092: vnt | E1092: 104.95 | F1092: =IF(ISBLANK(E1092),"", PRODUCT(C1092,E1092)) -> 209.9 | G1092: 22556204, katalogas 1, p. 72, Changzhou Kanghui Medical Innovation Co., Ltd. a Medtronic company | H1092: Stipinkaulio distalinio galo dorsalinė užrakinama kompresinė plokštelė, 106° L formos, pagaminta iš titano. 3 kiaurymės distalinėje dalyje. Fiksuojama Ø 2,7 mm užrakinamais ir Ø 2,7 mm kortikaliniais sraigtais. Kairės pusės, 4 kiaurymių
A1093: 3.12.1. | B1093: Kairės pusės, 4 kiaurymių
A1094: 3.13. | B1094: Stipinkaulio distalinio galo dorsalinė užrakinama kompresinė plokštelė, 106° L formos, pagaminta iš titano. 3 kiaurymės distalinėje dalyje. Fiksuojama Ø 2,7 mm užrakinamais ir Ø 2,7 mm kortikaliniais sraigtais. | C1094: 3 | D1094: vnt | E1094: 104.95 | F1094: =IF(ISBLANK(E1094),"", PRODUCT(C1094,E1094)) -> 314.85 | G1094: 22556103, katalogas 1, p. 72, Changzhou Kanghui Medical Innovation Co., Ltd. a Medtronic company | H1094: Stipinkaulio distalinio galo dorsalinė užrakinama kompresinė plokštelė, 106° L formos, pagaminta iš titano. 3 kiaurymės distalinėje dalyje. Fiksuojama Ø 2,7 mm užrakinamais ir Ø 2,7 mm kortikaliniais sraigtais. Dešinės pusės, 3 kiaurymių
A1095: 3.13.1. | B1095: Dešinės pusės, 3 kiaurymių
A1096: 3.14. | B1096: Stipinkaulio distalinio galo dorsalinė užrakinama kompresinė plokštelė, 106° L formos, pagaminta iš titano. 3 kiaurymės distalinėje dalyje. Fiksuojama Ø 2,7 mm užrakinamais ir Ø 2,7 mm kortikaliniais sraigtais. | C1096: 2 | D1096: vnt | E1096: 104.95 | F1096: =IF(ISBLANK(E1096),"", PRODUCT(C1096,E1096)) -> 209.9 | G1096: 22556104, katalogas 1, p. 72, Changzhou Kanghui Medical Innovation Co., Ltd. a Medtronic company | H1096: Stipinkaulio distalinio galo dorsalinė užrakinama kompresinė plokštelė, 106° L formos, pagaminta iš titano. 3 kiaurymės distalinėje dalyje. Fiksuojama Ø 2,7 mm užrakinamais ir Ø 2,7 mm kortikaliniais sraigtais. Dešinės pusės, 4 kiaurymių
A1097: 3.14.1. | B1097: Dešinės pusės, 4 kiaurymių
A1098: 3.15. | B1098: Stipinkaulio distalinio galo dorsalinė užrakinama kompresinė plokštelė, T formos, pagaminta iš titano. 3 kiaurymės distalinėje dalyje. Fiksuojama Ø 2,7 mm užrakinamais ir Ø 2,7 mm kortikaliniais sraigtais. | C1098: 10 | D1098: vnt | E1098: 103.62 | F1098: =IF(ISBLANK(E1098),"", PRODUCT(C1098,E1098)) -> 1036.2 | G1098: 22557003, katalogas 1, p. 72, Changzhou Kanghui Medical Innovation Co., Ltd. a Medtronic company | H1098: Stipinkaulio distalinio galo dorsalinė užrakinama kompresinė plokštelė, T formos, pagaminta iš titano. 3 kiaurymės distalinėje dalyje. Fiksuojama Ø 2,7 mm užrakinamais ir Ø 2,7 mm kortikaliniais sraigtais. 3 kiaurymių
A1099: 3.15.1. | B1099: 3 kiaurymių
A1100: 3.16. | B1100: Stipinkaulio distalinio galo dorsalinė užrakinama kompresinė plokštelė, T formos, pagaminta iš titano. 3 kiaurymės distalinėje dalyje. Fiksuojama Ø 2,7 mm užrakinamais ir Ø 2,7 mm kortikaliniais sraigtais. | C1100: 10 | D1100: vnt | E1100: 103.62 | F1100: =IF(ISBLANK(E1100),"", PRODUCT(C1100,E1100)) -> 1036.2 | G1100: 22557004, 22557005, katalogas 1, p. 72, Changzhou Kanghui Medical Innovation Co., Ltd. a Medtronic company | H1100: Stipinkaulio distalinio galo dorsalinė užrakinama kompresinė plokštelė, T formos, pagaminta iš titano. 3 kiaurymės distalinėje dalyje. Fiksuojama Ø 2,7 mm užrakinamais ir Ø 2,7 mm kortikaliniais sraigtais. 4, 5 kiaurymių
A1101: 3.16.1. | B1101: 4-5 kiaurymių
A1102: 3.17. | B1102: Anatomiškai išlenkta stipinkaulio distalinio galo voliarinė užrakinama kompresinė plokštelė, pagaminta iš titano. Plokštelės "galvoje" yra 8-9 kiaurymės užrakinamiems sraigtams. Fiksuojama Ø 2,7 mm užrakinamais ir Ø 2,7 mm kortikaliniais sraigtais. | C1102: 2 | D1102: vnt | E1102: 164.89 | F1102: =IF(ISBLANK(E1102),"", PRODUCT(C1102,E1102)) -> 329.78 | G1102: 22560203, katalogas 1, p. 73; 22559203, katalogas 1, p. 73, Changzhou Kanghui Medical Innovation Co., Ltd. a Medtronic company | H1102: Anatomiškai išlenkta stipinkaulio distalinio galo voliarinė užrakinama kompresinė plokštelė, pagaminta iš titano. Plokštelės "galvoje" yra 8, 9 kiaurymės užrakinamiems sraigtams. Fiksuojama Ø 2,7 mm užrakinamais ir Ø 2,7 mm kortikaliniais sraigtais, kairės pusės, 3 kiaurymių
A1103: 3.17.1. | B1103: Kairės pusės, 3 kiaurymių
A1104: 3.18. | B1104: Anatomiškai išlenkta stipinkaulio distalinio galo voliarinė užrakinama kompresinė plokštelė, pagaminta iš titano. Plokštelės "galvoje" yra 8-9 kiaurymės užrakinamiems sraigtams. Fiksuojama Ø 2,7 mm užrakinamais ir Ø 2,7 mm kortikaliniais sraigtais. | C1104: 2 | D1104: vnt | E1104: 164.89 | F1104: =IF(ISBLANK(E1104),"", PRODUCT(C1104,E1104)) -> 329.78 | G1104: 22560204, katalogas 1, p. 73; 22559204, katalogas 1, p. 73, Changzhou Kanghui Medical Innovation Co., Ltd. a Medtronic company | H1104: Anatomiškai išlenkta stipinkaulio distalinio galo voliarinė užrakinama kompresinė plokštelė, pagaminta iš titano. Plokštelės "galvoje" yra 8, 9 kiaurymės užrakinamiems sraigtams. Fiksuojama Ø 2,7 mm užrakinamais ir Ø 2,7 mm kortikaliniais sraigtais, kairės pusės, 4 kiaurymių
A1105: 3.18.1. | B1105: Kairės pusės, 4 kiaurymių
A1106: 3.19. | B1106: Anatomiškai išlenkta stipinkaulio distalinio galo voliarinė užrakinama kompresinė plokštelė, pagaminta iš titano. Plokštelės "galvoje" yra 8-9 kiaurymės užrakinamiems sraigtams. Fiksuojama Ø 2,7 mm užrakinamais ir Ø 2,7 mm kortikaliniais sraigtais. | C1106: 2 | D1106: vnt | E1106: 164.89 | F1106: =IF(ISBLANK(E1106),"", PRODUCT(C1106,E1106)) -> 329.78 | G1106: 22560205, 22560206 katalogas 1, p. 73; 22559205, katalogas 1, p. 73,Changzhou Kanghui Medical Innovation Co., Ltd. a Medtronic company | H1106: Anatomiškai išlenkta stipinkaulio distalinio galo voliarinė užrakinama kompresinė plokštelė, pagaminta iš titano. Plokštelės "galvoje" yra 8, 9 kiaurymės užrakinamiems sraigtams. Fiksuojama Ø 2,7 mm užrakinamais ir Ø 2,7 mm kortikaliniais sraigtais, kairės pusės, 5, 6 kiaurymių
A1107: 3.19.1. | B1107: Kairės pusės, 5-6 kiaurymių
A1108: 3.20. | B1108: Anatomiškai išlenkta stipinkaulio distalinio galo voliarinė užrakinama kompresinė plokštelė, pagaminta iš titano. Plokštelės "galvoje" yra 8-9 kiaurymės užrakinamiems sraigtams. Fiksuojama Ø 2,7 mm užrakinamais ir Ø 2,7 mm kortikaliniais sraigtais. | C1108: 2 | D1108: vnt | E1108: 164.89 | F1108: =IF(ISBLANK(E1108),"", PRODUCT(C1108,E1108)) -> 329.78 | G1108: 22560103, katalogas 1, p. 73; 22559103, katalogas 1, p. 73, Changzhou Kanghui Medical Innovation Co., Ltd. a Medtronic company | H1108: Anatomiškai išlenkta stipinkaulio distalinio galo voliarinė užrakinama kompresinė plokštelė, pagaminta iš titano. Plokštelės "galvoje" yra 8, 9 kiaurymės užrakinamiems sraigtams. Fiksuojama Ø 2,7 mm užrakinamais ir Ø 2,7 mm kortikaliniais sraigtais, dešinės pusės, 3 kiaurymių
A1109: 3.20.1. | B1109: Dešinės pusės, 3 kiaurymių
A1110: 3.21. | B1110: Anatomiškai išlenkta stipinkaulio distalinio galo voliarinė užrakinama kompresinė plokštelė, pagaminta iš titano. Plokštelės "galvoje" yra 8-9 kiaurymės užrakinamiems sraigtams. Fiksuojama Ø 2,7 mm užrakinamais ir Ø 2,7 mm kortikaliniais sraigtais. | C1110: 2 | D1110: vnt | E1110: 164.89 | F1110: =IF(ISBLANK(E1110),"", PRODUCT(C1110,E1110)) -> 329.78 | G1110: 22560104, katalogas 1, p. 73; 22559104, katalogas 1, p. 73, Changzhou Kanghui Medical Innovation Co., Ltd. a Medtronic company | H1110: Anatomiškai išlenkta stipinkaulio distalinio galo voliarinė užrakinama kompresinė plokštelė, pagaminta iš titano. Plokštelės "galvoje" yra 8, 9 kiaurymės užrakinamiems sraigtams. Fiksuojama Ø 2,7 mm užrakinamais ir Ø 2,7 mm kortikaliniais sraigtais, dešinės pusės, 4 kiaurymių
A1111: 3.21.1. | B1111: Dešinės pusės, 4 kiaurymių
A1112: 3.22. | B1112: Anatomiškai išlenkta stipinkaulio distalinio galo voliarinė užrakinama kompresinė plokštelė, pagaminta iš titano. Plokštelės "galvoje" yra 8-9 kiaurymės užrakinamiems sraigtams. Fiksuojama Ø 2,7 mm užrakinamais ir Ø 2,7 mm kortikaliniais sraigtais. | C1112: 2 | D1112: vnt | E1112: 164.89 | F1112: =IF(ISBLANK(E1112),"", PRODUCT(C1112,E1112)) -> 329.78 | G1112: 22560105, 22560106 katalogas 1, p. 73; 22559105, katalogas 1, p. 73,Changzhou Kanghui Medical Innovation Co., Ltd. a Medtronic company | H1112: Anatomiškai išlenkta stipinkaulio distalinio galo voliarinė užrakinama kompresinė plokštelė, pagaminta iš titano. Plokštelės "galvoje" yra 8, 9 kiaurymės užrakinamiems sraigtams. Fiksuojama Ø 2,7 mm užrakinamais ir Ø 2,7 mm kortikaliniais sraigtais, dešinės pusės, 5, 6 kiaurymių
A1113: 3.22.1. | B1113: Dešinės pusės, 5-6 kiaurymių
A1114: 3.23. | B1114: Tiesi užrakinama kompresinė plokštelė, plati, pagaminta iš titano. Fiksuojama Ø 5,0 mm užrakinamais ir Ø 4,5 mm kortikaliniais sraigtais. | C1114: 5 | D1114: vnt | E1114: 77.43 | F1114: =IF(ISBLANK(E1114),"", PRODUCT(C1114,E1114)) -> 387.15 | G1114: 22587006, katalogas 1, p. 76, Changzhou Kanghui Medical Innovation Co., Ltd. a Medtronic company | H1114: Tiesi užrakinama kompresinė plokštelė, plati, pagaminta iš titano. Fiksuojama Ø 5,0 mm užrakinamais ir Ø 4,5 mm kortikaliniais sraigtais. 6 kiaurymių
A1115: 3.23.1. | B1115: 6 kiaurymių
A1116: 3.24. | B1116: Tiesi užrakinama kompresinė plokštelė, plati, pagaminta iš titano. Fiksuojama Ø 5,0 mm užrakinamais ir Ø 4,5 mm kortikaliniais sraigtais. | C1116: 3 | D1116: vnt | E1116: 83.97 | F1116: =IF(ISBLANK(E1116),"", PRODUCT(C1116,E1116)) -> 251.91 | G1116: 22587007, katalogas 1, p. 76, Changzhou Kanghui Medical Innovation Co., Ltd. a Medtronic company | H1116: Tiesi užrakinama kompresinė plokštelė, plati, pagaminta iš titano. Fiksuojama Ø 5,0 mm užrakinamais ir Ø 4,5 mm kortikaliniais sraigtais. 7 kiaurymių
A1117: 3.24.1. | B1117: 7 kiaurymių
A1118: 3.25. | B1118: Tiesi užrakinama kompresinė plokštelė, plati, pagaminta iš titano. Fiksuojama Ø 5,0 mm užrakinamais ir Ø 4,5 mm kortikaliniais sraigtais. | C1118: 5 | D1118: vnt | E1118: 83.97 | F1118: =IF(ISBLANK(E1118),"", PRODUCT(C1118,E1118)) -> 419.85 | G1118: 22587008, katalogas 1, p. 76, Changzhou Kanghui Medical Innovation Co., Ltd. a Medtronic company | H1118: Tiesi užrakinama kompresinė plokštelė, plati, pagaminta iš titano. Fiksuojama Ø 5,0 mm užrakinamais ir Ø 4,5 mm kortikaliniais sraigtais. 8 kiaurymių
A1119: 3.25.1. | B1119: 8 kiaurymių
A1120: 3.26. | B1120: Tiesi užrakinama kompresinė plokštelė, plati, pagaminta iš titano. Fiksuojama Ø 5,0 mm užrakinamais ir Ø 4,5 mm kortikaliniais sraigtais. | C1120: 3 | D1120: vnt | E1120: 83.97 | F1120: =IF(ISBLANK(E1120),"", PRODUCT(C1120,E1120)) -> 251.91 | G1120: 22587009, katalogas 1, p. 76, Changzhou Kanghui Medical Innovation Co., Ltd. a Medtronic company | H1120: Tiesi užrakinama kompresinė plokštelė, plati, pagaminta iš titano. Fiksuojama Ø 5,0 mm užrakinamais ir Ø 4,5 mm kortikaliniais sraigtais. 9 kiaurymių
A1121: 3.26.1. | B1121: 9 kiaurymių
A1122: 3.27. | B1122: Tiesi užrakinama kompresinė plokštelė, plati, pagaminta iš titano. Fiksuojama Ø 5,0 mm užrakinamais ir Ø 4,5 mm kortikaliniais sraigtais. | C1122: 5 | D1122: vnt | E1122: 90.42 | F1122: =IF(ISBLANK(E1122),"", PRODUCT(C1122,E1122)) -> 452.1 | G1122: 22587010, katalogas 1, p. 76, Changzhou Kanghui Medical Innovation Co., Ltd. a Medtronic company | H1122: Tiesi užrakinama kompresinė plokštelė, plati, pagaminta iš titano. Fiksuojama Ø 5,0 mm užrakinamais ir Ø 4,5 mm kortikaliniais sraigtais. 10 kiaurymių
A1123: 3.27.1. | B1123: 10 kiaurymių
A1124: 3.28. | B1124: Tiesi užrakinama kompresinė plokštelė, plati, pagaminta iš titano. Fiksuojama Ø 5,0 mm užrakinamais ir Ø 4,5 mm kortikaliniais sraigtais. | C1124: 5 | D1124: vnt | E1124: 90.42 | F1124: =IF(ISBLANK(E1124),"", PRODUCT(C1124,E1124)) -> 452.1 | G1124: 22587012, katalogas 1, p. 76, Changzhou Kanghui Medical Innovation Co., Ltd. a Medtronic company | H1124: Tiesi užrakinama kompresinė plokštelė, plati, pagaminta iš titano. Fiksuojama Ø 5,0 mm užrakinamais ir Ø 4,5 mm kortikaliniais sraigtais. 12 kiaurymių
A1125: 3.28.1. | B1125: 12 kiaurymių
A1126: 3.29. | B1126: Tiesi užrakinama kompresinė plokštelė, plati, pagaminta iš titano. Fiksuojama Ø 5,0 mm užrakinamais ir Ø 4,5 mm kortikaliniais sraigtais. | C1126: 5 | D1126: vnt | E1126: 90.42 | F1126: =IF(ISBLANK(E1126),"", PRODUCT(C1126,E1126)) -> 452.1 | G1126: 22587014, katalogas 1, p. 76, Changzhou Kanghui Medical Innovation Co., Ltd. a Medtronic company | H1126: Tiesi užrakinama kompresinė plokštelė, plati, pagaminta iš titano. Fiksuojama Ø 5,0 mm užrakinamais ir Ø 4,5 mm kortikaliniais sraigtais. 14 kiaurymių
A1127: 3.29.1. | B1127: 14 kiaurymių
A1128: 3.30. | B1128: Tiesi užrakinama kompresinė plokštelė, plati, pagaminta iš titano. Fiksuojama Ø 5,0 mm užrakinamais ir Ø 4,5 mm kortikaliniais sraigtais. | C1128: 5 | D1128: vnt | E1128: 96.87 | F1128: =IF(ISBLANK(E1128),"", PRODUCT(C1128,E1128)) -> 484.35 | G1128: 22587016, katalogas 1, p. 76, Changzhou Kanghui Medical Innovation Co., Ltd. a Medtronic company | H1128: Tiesi užrakinama kompresinė plokštelė, plati, pagaminta iš titano. Fiksuojama Ø 5,0 mm užrakinamais ir Ø 4,5 mm kortikaliniais sraigtais. 16 kiaurymių
A1129: 3.30.1. | B1129: 16 kiaurymių
A1130: 3.31. | B1130: Tiesi metafizinė užrakinama kompresinė plokštelė, storėjanti iš vieno galo į kitą, pagaminta iš titano. Fiksuojama Ø 3,5 ir 5,0 mm užrakinamais ir Ø 4,5 mm kortikaliniais sraigtais. | C1130: 2 | D1130: vnt | E1130: 112.95 | F1130: =IF(ISBLANK(E1130),"", PRODUCT(C1130,E1130)) -> 225.9 | G1130: 22520004, katalogas 1, p. 76, Changzhou Kanghui Medical Innovation Co., Ltd. a Medtronic company | H1130: Tiesi metafizinė užrakinama kompresinė plokštelė, storėjanti iš vieno galo į kitą, pagaminta iš titano. Fiksuojama Ø 3,5 ir 5,0 mm užrakinamais ir Ø 4,5 mm kortikaliniais sraigtais. 5+4 kiaurymių
A1131: 3.31.1. | B1131: 5+4 kiaurymių
A1132: 3.32. | B1132: Tiesi metafizinė užrakinama kompresinė plokštelė, storėjanti iš vieno galo į kitą, pagaminta iš titano. Fiksuojama Ø 3,5 ir 5,0 mm užrakinamais ir Ø 4,5 mm kortikaliniais sraigtais. | C1132: 1 | D1132: vnt | E1132: 112.95 | F1132: =IF(ISBLANK(E1132),"", PRODUCT(C1132,E1132)) -> 112.95 | G1132: 22520005, katalogas 1, p. 76, Changzhou Kanghui Medical Innovation Co., Ltd. a Medtronic company | H1132: Tiesi metafizinė užrakinama kompresinė plokštelė, storėjanti iš vieno galo į kitą, pagaminta iš titano. Fiksuojama Ø 3,5 ir 5,0 mm užrakinamais ir Ø 4,5 mm kortikaliniais sraigtais. 5+5 kiaurymių
A1133: 3.32.1. | B1133: 5+5 kiaurymių
A1134: 3.33. | B1134: Tiesi metafizinė užrakinama kompresinė plokštelė, storėjanti iš vieno galo į kitą, pagaminta iš titano. Fiksuojama Ø 3,5 ir 5,0 mm užrakinamais ir Ø 4,5 mm kortikaliniais sraigtais. | C1134: 2 | D1134: vnt | E1134: 127.48 | F1134: =IF(ISBLANK(E1134),"", PRODUCT(C1134,E1134)) -> 254.96 | G1134: 22520006, katalogas 1, p. 76, Changzhou Kanghui Medical Innovation Co., Ltd. a Medtronic company | H1134: Tiesi metafizinė užrakinama kompresinė plokštelė, storėjanti iš vieno galo į kitą, pagaminta iš titano. Fiksuojama Ø 3,5 ir 5,0 mm užrakinamais ir Ø 4,5 mm kortikaliniais sraigtais. 5+6 kiaurymių
A1135: 3.33.1. | B1135: 5+6 kiaurymių
A1136: 3.34. | B1136: Tiesi metafizinė užrakinama kompresinė plokštelė, storėjanti iš vieno galo į kitą, pagaminta iš titano. Fiksuojama Ø 3,5 ir 5,0 mm užrakinamais ir Ø 4,5 mm kortikaliniais sraigtais. | C1136: 1 | D1136: vnt | E1136: 127.48 | F1136: =IF(ISBLANK(E1136),"", PRODUCT(C1136,E1136)) -> 127.48 | G1136: 22520007, katalogas 1, p. 76, Changzhou Kanghui Medical Innovation Co., Ltd. a Medtronic company | H1136: Tiesi metafizinė užrakinama kompresinė plokštelė, storėjanti iš vieno galo į kitą, pagaminta iš titano. Fiksuojama Ø 3,5 ir 5,0 mm užrakinamais ir Ø 4,5 mm kortikaliniais sraigtais. 5+7 kiaurymių
A1137: 3.34.1. | B1137: 5+7 kiaurymių
A1138: 3.35. | B1138: Tiesi metafizinė užrakinama kompresinė plokštelė, storėjanti iš vieno galo į kitą, pagaminta iš titano. Fiksuojama Ø 3,5 ir 5,0 mm užrakinamais ir Ø 4,5 mm kortikaliniais sraigtais. | C1138: 2 | D1138: vnt | E1138: 127.48 | F1138: =IF(ISBLANK(E1138),"", PRODUCT(C1138,E1138)) -> 254.96 | G1138: 22520008, katalogas 1, p. 76, Changzhou Kanghui Medical Innovation Co., Ltd. a Medtronic company | H1138: Tiesi metafizinė užrakinama kompresinė plokštelė, storėjanti iš vieno galo į kitą, pagaminta iš titano. Fiksuojama Ø 3,5 ir 5,0 mm užrakinamais ir Ø 4,5 mm kortikaliniais sraigtais. 5+8 kiaurymių
A1139: 3.35.1. | B1139: 5+8 kiaurymių
A1140: 3.36. | B1140: Tiesi metafizinė užrakinama kompresinė plokštelė, storėjanti iš vieno galo į kitą, pagaminta iš titano. Fiksuojama Ø 3,5 ir 5,0 mm užrakinamais ir Ø 4,5 mm kortikaliniais sraigtais. | C1140: 1 | D1140: vnt | E1140: 127.48 | F1140: =IF(ISBLANK(E1140),"", PRODUCT(C1140,E1140)) -> 127.48 | G1140: 22520009, katalogas 1, p. 76, Changzhou Kanghui Medical Innovation Co., Ltd. a Medtronic company | H1140: Tiesi metafizinė užrakinama kompresinė plokštelė, storėjanti iš vieno galo į kitą, pagaminta iš titano. Fiksuojama Ø 3,5 ir 5,0 mm užrakinamais ir Ø 4,5 mm kortikaliniais sraigtais. 5+9 kiaurymių
A1141: 3.36.1. | B1141: 5+9 kiaurymių
A1142: 3.37. | B1142: Distalinio žąstikaulio galo medialinė užrakinama kompresinė plokštelė, pagaminta iš titano. Fiksuojama Ø 2,7 ir 3,5 mm užrakinamais ir Ø 3,5 mm kortikaliniais sraigtais. | C1142: 3 | D1142: vnt | E1142: 165.25 | F1142: =IF(ISBLANK(E1142),"", PRODUCT(C1142,E1142)) -> 495.75 | G1142: 22579206, katalogas 1, p. 80, Changzhou Kanghui Medical Innovation Co., Ltd. a Medtronic company | H1142: Distalinio žąstikaulio galo medialinė užrakinama kompresinė plokštelė, pagaminta iš titano. Fiksuojama Ø 2,7 ir 3,5 mm užrakinamais ir Ø 3,5 mm kortikaliniais sraigtais. Kairės pusės, 3 kiaurymių
A1143: 3.37.1. | B1143: Kairės pusės, 3 kiaurymių
A1144: 3.38. | B1144: Distalinio žąstikaulio galo medialinė užrakinama kompresinė plokštelė, pagaminta iš titano. Fiksuojama Ø 2,7 ir 3,5 mm užrakinamais ir Ø 3,5 mm kortikaliniais sraigtais. | C1144: 3 | D1144: vnt | E1144: 165.25 | F1144: =IF(ISBLANK(E1144),"", PRODUCT(C1144,E1144)) -> 495.75 | G1144: 22579208, katalogas 1, p. 80, Changzhou Kanghui Medical Innovation Co., Ltd. a Medtronic company | H1144: Distalinio žąstikaulio galo medialinė užrakinama kompresinė plokštelė, pagaminta iš titano. Fiksuojama Ø 2,7 ir 3,5 mm užrakinamais ir Ø 3,5 mm kortikaliniais sraigtais. Kairės pusės, 5 kiaurymių
A1145: 3.38.1. | B1145: Kairės pusės, 5 kiaurymių
A1146: 3.39. | B1146: Distalinio žąstikaulio galo medialinė užrakinama kompresinė plokštelė, pagaminta iš titano. Fiksuojama Ø 2,7 ir 3,5 mm užrakinamais ir Ø 3,5 mm kortikaliniais sraigtais. | C1146: 2 | D1146: vnt | E1146: 165.25 | F1146: =IF(ISBLANK(E1146),"", PRODUCT(C1146,E1146)) -> 330.5 | G1146: 22579210, katalogas 1, p. 80, Changzhou Kanghui Medical Innovation Co., Ltd. a Medtronic company | H1146: Distalinio žąstikaulio galo medialinė užrakinama kompresinė plokštelė, pagaminta iš titano. Fiksuojama Ø 2,7 ir 3,5 mm užrakinamais ir Ø 3,5 mm kortikaliniais sraigtais. Kairės pusės, 7 kiaurymių
A1147: 3.39.1. | B1147: Kairės pusės, 7 kiaurymių
A1148: 3.40. | B1148: Distalinio žąstikaulio galo medialinė užrakinama kompresinė plokštelė, pagaminta iš titano. Fiksuojama Ø 2,7 ir 3,5 mm užrakinamais ir Ø 3,5 mm kortikaliniais sraigtais. | C1148: 1 | D1148: vnt | E1148: 165.25 | F1148: =IF(ISBLANK(E1148),"", PRODUCT(C1148,E1148)) -> 165.25 | G1148: 22579212, katalogas 1, p. 80, Changzhou Kanghui Medical Innovation Co., Ltd. a Medtronic company | H1148: Distalinio žąstikaulio galo medialinė užrakinama kompresinė plokštelė, pagaminta iš titano. Fiksuojama Ø 2,7 ir 3,5 mm užrakinamais ir Ø 3,5 mm kortikaliniais sraigtais. Kairės pusės, 9 kiaurymių
A1149: 3.40.1. | B1149: Kairės pusės, 9 kiaurymių
A1150: 3.41. | B1150: Distalinio žąstikaulio galo medialinė užrakinama kompresinė plokštelė, pagaminta iš titano. Fiksuojama Ø 2,7 ir 3,5 mm užrakinamais ir Ø 3,5 mm kortikaliniais sraigtais. | C1150: 3 | D1150: vnt | E1150: 165.25 | F1150: =IF(ISBLANK(E1150),"", PRODUCT(C1150,E1150)) -> 495.75 | G1150: 22579106, katalogas 1, p. 80, Changzhou Kanghui Medical Innovation Co., Ltd. a Medtronic company | H1150: Distalinio žąstikaulio galo medialinė užrakinama kompresinė plokštelė, pagaminta iš titano. Fiksuojama Ø 2,7 ir 3,5 mm užrakinamais ir Ø 3,5 mm kortikaliniais sraigtais. Dešinės pusės, 3 kiaurymių
A1151: 3.41.1. | B1151: Dešinės pusės, 3 kiaurymių
A1152: 3.42. | B1152: Distalinio žąstikaulio galo medialinė užrakinama kompresinė plokštelė, pagaminta iš titano. Fiksuojama Ø 2,7 ir 3,5 mm užrakinamais ir Ø 3,5 mm kortikaliniais sraigtais. | C1152: 3 | D1152: vnt | E1152: 165.25 | F1152: =IF(ISBLANK(E1152),"", PRODUCT(C1152,E1152)) -> 495.75 | G1152: 22579108, katalogas 1, p. 80, Changzhou Kanghui Medical Innovation Co., Ltd. a Medtronic company | H1152: Distalinio žąstikaulio galo medialinė užrakinama kompresinė plokštelė, pagaminta iš titano. Fiksuojama Ø 2,7 ir 3,5 mm užrakinamais ir Ø 3,5 mm kortikaliniais sraigtais. Dešinės pusės, 5 kiaurymių
A1153: 3.42.1. | B1153: Dešinės pusės, 5 kiaurymių
A1154: 3.43. | B1154: Distalinio žąstikaulio galo medialinė užrakinama kompresinė plokštelė, pagaminta iš titano. Fiksuojama Ø 2,7 ir 3,5 mm užrakinamais ir Ø 3,5 mm kortikaliniais sraigtais. | C1154: 2 | D1154: vnt | E1154: 165.25 | F1154: =IF(ISBLANK(E1154),"", PRODUCT(C1154,E1154)) -> 330.5 | G1154: 22579110, katalogas 1, p. 80, Changzhou Kanghui Medical Innovation Co., Ltd. a Medtronic company | H1154: Distalinio žąstikaulio galo medialinė užrakinama kompresinė plokštelė, pagaminta iš titano. Fiksuojama Ø 2,7 ir 3,5 mm užrakinamais ir Ø 3,5 mm kortikaliniais sraigtais. Dešinės pusės, 7 kiaurymių
A1155: 3.43.1. | B1155: Dešinės pusės, 7 kiaurymių
A1156: 3.44. | B1156: Distalinio žąstikaulio galo medialinė užrakinama kompresinė plokštelė, pagaminta iš titano. Fiksuojama Ø 2,7 ir 3,5 mm užrakinamais ir Ø 3,5 mm kortikaliniais sraigtais. | C1156: 1 | D1156: vnt | E1156: 165.25 | F1156: =IF(ISBLANK(E1156),"", PRODUCT(C1156,E1156)) -> 165.25 | G1156: 22579112, katalogas 1, p. 80, Changzhou Kanghui Medical Innovation Co., Ltd. a Medtronic company | H1156: Distalinio žąstikaulio galo medialinė užrakinama kompresinė plokštelė, pagaminta iš titano. Fiksuojama Ø 2,7 ir 3,5 mm užrakinamais ir Ø 3,5 mm kortikaliniais sraigtais. Dešinės pusės, 9 kiaurymių
A1157: 3.44.1. | B1157: Dešinės pusės, 9 kiaurymių
A1158: 3.45. | B1158: Proksimalinio blauzdikaulio galo medialinė užrakinama kompresinė plokštelė, T formos, pagaminta iš titano. 3 kiaurymės užrakinamiems sraigtams proksimalinėje plokštelės dalyje. | C1158: 7 | D1158: vnt | E1158: 185.51 | F1158: =IF(ISBLANK(E1158),"", PRODUCT(C1158,E1158)) -> 1298.57 | G1158: 22589105, 22589106, katalogas 1, p. 84, Changzhou Kanghui Medical Innovation Co., Ltd. a Medtronic company | H1158: Proksimalinio blauzdikaulio galo medialinė užrakinama kompresinė plokštelė, T formos, pagaminta iš titano. 3 kiaurymės užrakinamiems sraigtams proksimalinėje plokštelės dalyje. Dešinės pusės, 5, 6 kiaurymės siaurojoje plokštelės dalyje
A1159: 3.45.1. | B1159: Dešinės pusės, 5-6 kiaurymės siaurojoje plokštelės dalyje
A1160: 3.46. | B1160: Proksimalinio blauzdikaulio galo medialinė užrakinama kompresinė plokštelė, T formos, pagaminta iš titano. 3 kiaurymės užrakinamiems sraigtams proksimalinėje plokštelės dalyje. | C1160: 4 | D1160: vnt | E1160: 185.51 | F1160: =IF(ISBLANK(E1160),"", PRODUCT(C1160,E1160)) -> 742.04 | G1160: 22589107, 22589108, katalogas 1, p. 84, Changzhou Kanghui Medical Innovation Co., Ltd. a Medtronic company | H1160: Proksimalinio blauzdikaulio galo medialinė užrakinama kompresinė plokštelė, T formos, pagaminta iš titano. 3 kiaurymės užrakinamiems sraigtams proksimalinėje plokštelės dalyje. Dešinės pusės, 7, 8 kiaurymės siaurojoje plokštelės dalyje
A1161: 3.46.1. | B1161: Dešinės pusės, 7-8 kiaurymės siaurojoje plokštelės dalyje
A1162: 3.47. | B1162: Proksimalinio blauzdikaulio galo medialinė užrakinama kompresinė plokštelė, T formos, pagaminta iš titano. 3 kiaurymės užrakinamiems sraigtams proksimalinėje plokštelės dalyje. | C1162: 2 | D1162: vnt | E1162: 185.51 | F1162: =IF(ISBLANK(E1162),"", PRODUCT(C1162,E1162)) -> 371.02 | G1162: 22589109, 22589110, katalogas 1, p. 84, Changzhou Kanghui Medical Innovation Co., Ltd. a Medtronic company | H1162: Proksimalinio blauzdikaulio galo medialinė užrakinama kompresinė plokštelė, T formos, pagaminta iš titano. 3 kiaurymės užrakinamiems sraigtams proksimalinėje plokštelės dalyje. Dešinės pusės, 9, 10 kiaurymių siaurojoje plokštelės dalyje
A1163: 3.47.1. | B1163: Dešinės pusės, 9-10 kiaurymės siaurojoje plokštelės dalyje
A1164: 3.48. | B1164: Proksimalinio blauzdikaulio galo medialinė užrakinama kompresinė plokštelė, T formos, pagaminta iš titano. 3 kiaurymės užrakinamiems sraigtams proksimalinėje plokštelės dalyje. | C1164: 2 | D1164: vnt | E1164: 202.01 | F1164: =IF(ISBLANK(E1164),"", PRODUCT(C1164,E1164)) -> 404.02 | G1164: 22589111, 22589112 katalogas 1, p. 84, Changzhou Kanghui Medical Innovation Co., Ltd. a Medtronic company | H1164: Proksimalinio blauzdikaulio galo medialinė užrakinama kompresinė plokštelė, T formos, pagaminta iš titano. 3 kiaurymės užrakinamiems sraigtams proksimalinėje plokštelės dalyje. Dešinės pusės, 11, 12 kiaurymių siaurojoje plokštelės dalyje
A1165: 3.48.1. | B1165: Dešinės pusės, 11-12 kiaurymių siaurojoje plokštelės dalyje
A1166: 3.49. | B1166: Proksimalinio blauzdikaulio galo medialinė užrakinama kompresinė plokštelė, T formos, pagaminta iš titano. 3 kiaurymės užrakinamiems sraigtams proksimalinėje plokštelės dalyje. | C1166: 7 | D1166: vnt | E1166: 185.51 | F1166: =IF(ISBLANK(E1166),"", PRODUCT(C1166,E1166)) -> 1298.57 | G1166: 22589205, 22589206, katalogas 1, p. 84, Changzhou Kanghui Medical Innovation Co., Ltd. a Medtronic company | H1166: Proksimalinio blauzdikaulio galo medialinė užrakinama kompresinė plokštelė, T formos, pagaminta iš titano. 3 kiaurymės užrakinamiems sraigtams proksimalinėje plokštelės dalyje. Kairės pusės, 5, 6 kiaurymės siaurojoje plokštelės dalyje
A1167: 3.49.1. | B1167: Kairės pusės, 5-6 kiaurymės siaurojoje plokštelės dalyje
A1168: 3.50. | B1168: Proksimalinio blauzdikaulio galo medialinė užrakinama kompresinė plokštelė, T formos, pagaminta iš titano. 3 kiaurymės užrakinamiems sraigtams proksimalinėje plokštelės dalyje. | C1168: 4 | D1168: vnt | E1168: 185.51 | F1168: =IF(ISBLANK(E1168),"", PRODUCT(C1168,E1168)) -> 742.04 | G1168: 22589207, 22589208, katalogas 1, p. 84, Changzhou Kanghui Medical Innovation Co., Ltd. a Medtronic company | H1168: Proksimalinio blauzdikaulio galo medialinė užrakinama kompresinė plokštelė, T formos, pagaminta iš titano. 3 kiaurymės užrakinamiems sraigtams proksimalinėje plokštelės dalyje. Kairės pusės, 7, 8 kiaurymės siaurojoje plokštelės dalyje
A1169: 3.50.1. | B1169: Kairės pusės, 7-8 kiaurymės siaurojoje plokštelės dalyje
A1170: 3.51. | B1170: Proksimalinio blauzdikaulio galo medialinė užrakinama kompresinė plokštelė, T formos, pagaminta iš titano. 3 kiaurymės užrakinamiems sraigtams proksimalinėje plokštelės dalyje. | C1170: 2 | D1170: vnt | E1170: 185.51 | F1170: =IF(ISBLANK(E1170),"", PRODUCT(C1170,E1170)) -> 371.02 | G1170: 22589209, 22589210, katalogas 1, p. 84, Changzhou Kanghui Medical Innovation Co., Ltd. a Medtronic company | H1170: Proksimalinio blauzdikaulio galo medialinė užrakinama kompresinė plokštelė, T formos, pagaminta iš titano. 3 kiaurymės užrakinamiems sraigtams proksimalinėje plokštelės dalyje. Kairės pusės, 9, 10 kiaurymės siaurojoje plokštelės dalyje
A1171: 3.51.1. | B1171: Kairės pusės, 9-10 kiaurymės siaurojoje plokštelės dalyje
A1172: 3.52. | B1172: Proksimalinio blauzdikaulio galo medialinė užrakinama kompresinė plokštelė, T formos, pagaminta iš titano. 3 kiaurymės užrakinamiems sraigtams proksimalinėje plokštelės dalyje. | C1172: 2 | D1172: vnt | E1172: 185.51 | F1172: =IF(ISBLANK(E1172),"", PRODUCT(C1172,E1172)) -> 371.02 | G1172: 22589211, 22589212 katalogas 1, p. 84, Changzhou Kanghui Medical Innovation Co., Ltd. a Medtronic company | H1172: Proksimalinio blauzdikaulio galo medialinė užrakinama kompresinė plokštelė, T formos, pagaminta iš titano. 3 kiaurymės užrakinamiems sraigtams proksimalinėje plokštelės dalyje. Kairės pusės, 11, 12 kiaurymės siaurojoje plokštelės dalyje
A1173: 3.52.1. | B1173: Kairės pusės, 11-12 kiaurymės siaurojoje plokštelės dalyje
A1174: 3.53. | B1174: Ø 2,7 mm užrakinami savisriegiai sraigtai, pilnu sriegiu, pagaminti iš titano lydinio. | C1174: 800 | D1174: vnt | E1174: 20.73 | F1174: =IF(ISBLANK(E1174),"", PRODUCT(C1174,E1174)) -> 16584 | G1174: 32580006-32580030, katalogas 1, p. 66, Changzhou Kanghui Medical Innovation Co., Ltd. a Medtronic company | H1174: Ø 2,7 mm užrakinami savisriegiai sraigtai, pilnu sriegiu, pagaminti iš titano lydinio. Nuo 12 mm iki 30 mm kas 2 mm
A1175: 3.53.1. | B1175: Nuo 12 mm iki 30 mm kas 2 mm
A1176: 3.54. | B1176: Ø 2,7 mm užrakinami savisriegiai sraigtai, pilnu sriegiu, pagaminti iš titano lydinio. | C1176: 80 | D1176: vnt | E1176: 24.15 | F1176: =IF(ISBLANK(E1176),"", PRODUCT(C1176,E1176)) -> 1932 | G1176: 32580032-32580060, katalogas 1, p. 66, Changzhou Kanghui Medical Innovation Co., Ltd. a Medtronic company | H1176: Ø 2,7 mm užrakinami savisriegiai sraigtai, pilnu sriegiu, pagaminti iš titano lydinio. Nuo 32 mm iki 50 mm kas 2 mm
A1177: 3.54.1. | B1177: Nuo 32 mm iki 50 mm kas 2 mm
A1178: 3.55. | B1178: Ø 2,7 mm kortikaliniai sraigtai, pilnu sriegiu, pagaminti iš titano lydinio. | C1178: 100 | D1178: vnt | E1178: 8.93 | F1178: =IF(ISBLANK(E1178),"", PRODUCT(C1178,E1178)) -> 893 | G1178: 30375006-30375020, katalogas 1, p. 66, Changzhou Kanghui Medical Innovation Co., Ltd. a Medtronic company | H1178: Ø 2,7 mm kortikaliniai sraigtai, pilnu sriegiu, pagaminti iš titano lydinio. Nuo 12 mm iki 20 mm kas 2 mm
A1179: 3.55.1. | B1179: Nuo 12 mm iki 20 mm kas 2 mm
A1180: 3.56. | B1180: Ø 2,7 mm kortikaliniai sraigtai, pilnu sriegiu, pagaminti iš titano lydinio. | C1180: 70 | D1180: vnt | E1180: 8.93 | F1180: =IF(ISBLANK(E1180),"", PRODUCT(C1180,E1180)) -> 625.1 | G1180: 30375022-30375060, katalogas 1, p. 66, Changzhou Kanghui Medical Innovation Co., Ltd. a Medtronic company | H1180: Ø 2,7 mm kortikaliniai sraigtai, pilnu sriegiu, pagaminti iš titano lydinio. Nuo 22 mm iki 40 mm kas 2 mm
A1181: 3.56.1. | B1181: Nuo 22 mm iki 40 mm kas 2 mm
A1182: 3.57. | B1182: Ø 3,5 mm užrakinami savisriegiai sraigtai, pilnu sriegiu, pagaminti iš titano lydinio. | C1182: 600 | D1182: vnt | E1182: 16.39 | F1182: =IF(ISBLANK(E1182),"", PRODUCT(C1182,E1182)) -> 9834 | G1182: 31451010-31451040, katalogas 1, p. 86, Changzhou Kanghui Medical Innovation Co., Ltd. a Medtronic company | H1182: Ø 3,5 mm užrakinami savisriegiai sraigtai, pilnu sriegiu, pagaminti iš titano lydinio. Nuo 12 mm iki 40 mm kas 2 mm
A1183: 3.57.1. | B1183: Nuo 12 mm iki 40 mm kas 2 mm
A1184: 3.58. | B1184: Ø 3,5 mm užrakinami savisriegiai sraigtai, pilnu sriegiu, pagaminti iš titano lydinio. | C1184: 400 | D1184: vnt | E1184: 18.72 | F1184: =IF(ISBLANK(E1184),"", PRODUCT(C1184,E1184)) -> 7488 | G1184: 31451042-31451080, katalogas 1, p. 86, Changzhou Kanghui Medical Innovation Co., Ltd. a Medtronic company | H1184: Ø 3,5 mm užrakinami savisriegiai sraigtai, pilnu sriegiu, pagaminti iš titano lydinio. Nuo 42 mm iki 80 mm, 12 ilgių
A1185: 3.58.1. | B1185: Nuo 42 mm iki 80 mm ne mažiau 8 ilgių
A1186: 3.59. | B1186: Ø 3,5 mm kortikaliniai sraigtai, pilnu sriegiu, pagaminti iš titano lydinio. | C1186: 1000 | D1186: vnt | E1186: 4.24 | F1186: =IF(ISBLANK(E1186),"", PRODUCT(C1186,E1186)) -> 4240 | G1186: 30306110-30306170, katalogas 1, p. 136, Changzhou Kanghui Medical Innovation Co., Ltd. a Medtronic company | H1186: Ø 3,5 mm kortikaliniai sraigtai, pilnu sriegiu, pagaminti iš titano lydinio. Nuo 10 mm iki 50 mm, 22 ilgių
A1187: 3.59.1. | B1187: Nuo 10 mm iki 50 mm ne mažiau 16 ilgių
A1188: 3.60. | B1188: Ø 4,0 mm spongioziniai sraigtai, pilnu sriegiu, pagaminti iš titano lydinio. | C1188: 80 | D1188: vnt | E1188: 4.69 | F1188: =IF(ISBLANK(E1188),"", PRODUCT(C1188,E1188)) -> 375.2 | G1188: 30403110-30403130, katalogas 1, p. 139, Changzhou Kanghui Medical Innovation Co., Ltd. a Medtronic company | H1188: Ø 4,0 mm spongioziniai sraigtai, pilnu sriegiu, pagaminti iš titano lydinio. Nuo 14 mm iki 30 mm kas 2 mm
A1189: 3.60.1. | B1189: Nuo 14 mm iki 30 mm kas 2 mm
A1190: 3.61. | B1190: Ø 4,0 mm spongioziniai sraigtai, pilnu sriegiu, pagaminti iš titano lydinio. | C1190: 30 | D1190: vnt | E1190: 4.69 | F1190: =IF(ISBLANK(E1190),"", PRODUCT(C1190,E1190)) -> 140.7 | G1190: 30403132-30403170, katalogas 1, p. 81, Changzhou Kanghui Medical Innovation Co., Ltd. a Medtronic company | H1190: Ø 4,0 mm spongioziniai sraigtai, pilnu sriegiu, pagaminti iš titano lydinio. Nuo 32 mm iki 60 mm, 14 ilgių
A1191: 3.61.1. | B1191: Nuo 32 mm iki 60 mm ne mažiau 6 ilgių
A1192: 3.62. | B1192: Ø 4,5 mm kortikaliniai sraigtai, pilnu sriegiu, pagaminti iš titano lydinio. | C1192: 200 | D1192: vnt | E1192: 4.26 | F1192: =IF(ISBLANK(E1192),"", PRODUCT(C1192,E1192)) -> 852 | G1192: 30308116-30308144, katalogas 1, p. 138, Changzhou Kanghui Medical Innovation Co., Ltd. a Medtronic company | H1192: Ø 4,5 mm kortikaliniai sraigtai, pilnu sriegiu, pagaminti iš titano lydinio. Nuo 18 mm iki 44 mm kas 2 mm
A1193: 3.62.1. | B1193: Nuo 18 mm iki 44 mm kas 2 mm
A1194: 3.63. | B1194: Ø 4,5 mm kortikaliniai sraigtai, pilnu sriegiu, pagaminti iš titano lydinio. | C1194: 60 | D1194: vnt | E1194: 5 | F1194: =IF(ISBLANK(E1194),"", PRODUCT(C1194,E1194)) -> 300 | G1194: 30308146-30308160, katalogas 1, p. 138, Changzhou Kanghui Medical Innovation Co., Ltd. a Medtronic company | H1194: Ø 4,5 mm kortikaliniai sraigtai, pilnu sriegiu, pagaminti iš titano lydinio. Nuo 46 mm iki 60 mm kas 2 mm
A1195: 3.63.1. | B1195: Nuo 46 mm iki 60 mm kas 2 mm
A1196: 3.64. | B1196: Ø 5,0 mm užrakinami savisriegiai sraigtai, pilnu sriegiu, pagaminti iš titano lydinio. | C1196: 400 | D1196: vnt | E1196: 19.95 | F1196: =IF(ISBLANK(E1196),"", PRODUCT(C1196,E1196)) -> 7980 | G1196: 31452014-31452040, katalogas 1, p. 87, Changzhou Kanghui Medical Innovation Co., Ltd. a Medtronic company | H1196: Ø 5,0 mm užrakinami savisriegiai sraigtai, pilnu sriegiu, pagaminti iš titano lydinio. Nuo 14 mm iki 40 mm kas 2 mm
A1197: 3.64.1. | B1197: Nuo 14 mm iki 40 mm kas 2 mm
A1198: 3.65. | B1198: Ø 5,0 mm užrakinami savisriegiai sraigtai, pilnu sriegiu, pagaminti iš titano lydinio. | C1198: 240 | D1198: vnt | E1198: 23.94 | F1198: =IF(ISBLANK(E1198),"", PRODUCT(C1198,E1198)) -> 5745.6 | G1198: 31452042-31452050, katalogas 1, p. 87, Changzhou Kanghui Medical Innovation Co., Ltd. a Medtronic company | H1198: Ø 5,0 mm užrakinami savisriegiai sraigtai, pilnu sriegiu, pagaminti iš titano lydinio. Nuo 42 mm iki 50 mm kas 2 mm
A1199: 3.65.1. | B1199: Nuo 42 mm iki 50 mm kas 2 mm
A1200: 3.66. | B1200: Ø 5,0 mm užrakinami savisriegiai sraigtai, pilnu sriegiu, pagaminti iš titano lydinio. | C1200: 300 | D1200: vnt | E1200: 25.76 | F1200: =IF(ISBLANK(E1200),"", PRODUCT(C1200,E1200)) -> 7728 | G1200: 31452055-31452090, katalogas 1, p. 87, Changzhou Kanghui Medical Innovation Co., Ltd. a Medtronic company | H1200: Ø 5,0 mm užrakinami savisriegiai sraigtai, pilnu sriegiu, pagaminti iš titano lydinio. Nuo 52 mm iki 90 mm, 8 ilgių
A1201: 3.66.1. | B1201: Nuo 52 mm iki 90 mm ne mažiau 8 ilgių
A1202: 3.67. | B1202: Instrumentai, skirti darbui su užrakinamų titaninių plokštelių sistema, naudojama su Ø 2,7 mm sraigtais. Privaloma pateikti 1 rinkinį panaudos būdu. Vieno rinkinio sudėtis: | C1202: 1 | D1202: rinkinys | E1202: 0 | F1202: =IF(ISBLANK(E1202),"", PRODUCT(C1202,E1202)) -> 0 | G1202: 287900, katalogas 1, p. 88, Changzhou Kanghui Medical Innovation Co., Ltd. a Medtronic company | H1202: Instrumentai, skirti darbui su užrakinamų titaninių plokštelių sistema, naudojama su Ø 2,7 mm sraigtais
A1203: 3.67.1. | B1203: Konteineris instrumentų sterilizavimui - 1 vnt
A1204: 3.67.2. | B1204: Sraigtų sterilizavimo konteineris - 1 vnt
A1205: 3.67.3. | B1205: Plokštelių sterilizavimo padėklas - 1 vnt
A1206: 3.67.4. | B1206: Ø 2,0 mm grąžto nukreipiklis - 10 vnt
A1207: 3.67.5. | B1207: Grąžtas Ø 2,0 mm - 20
A1208: 3.67.6. | B1208: Šešiakampės žvaigždės formos atsuktuvas, apribojantis priveržimo jėgą - 5 vnt
A1209: 3.67.7. | B1209: Ø 2,7 mm užrakinamų sraigtų laikymo įvorė - 5 vnt
A1210: 3.67.8. | B1210: Kiaurymės gylio matuoklis, matavimo skalė 10÷60 mm - 4 vnt
A1211: 3.67.9. | B1211: Atsuktuvas 2,7 mm užrakinamiems sraigtams, įsistatantis į elektrinį jėgos instrumentą - 10 vnt
A1212: 3.67.10. | B1212: Universali T formos rankena su instrumento greito pajungimo jungtimi - 5 vnt
A1213: 3.67.11. | B1213: Instrumentas sraigto su prasukta galvute išėmimui, tinkantis 2,7 mm skersmens sraigtams - 2 vnt
A1214: 3.67.12. | B1214: Grąžtas Ø 2,7 mm - 3 vnt
A1215: 3.67.13. | B1215: Sriegiklis Ø 2,7 mm - 5 vnt
A1216: 3.67.14. | B1216: Angos platintuvas kaule - 2 vnt
A1217: 3.67.15. | B1217: Specialus T formos atsuktuvas, skirtas užrakinamų sraigtų išsukimui - 15 vnt
A1218: 3.67.16. | B1218: Dvipusis grąžto kreiptuvas, tinkantis Ø 2,0 ir 2,7 mm grąžtams - 2 vnt
A1219: 3.68. | B1219: Instrumentai, skirti darbui su užrakinamų titaninių plokštelių sistema, naudojama su Ø 3,5 mm sraigtais. Privaloma pateikti 1 rinkinį. Vieno rinkinio sudėtis: | C1219: 1 | D1219: rinkinys | E1219: 0 | F1219: =IF(ISBLANK(E1219),"", PRODUCT(C1219,E1219)) -> 0 | G1219: 222900, katalogas 1, p. 91, Changzhou Kanghui Medical Innovation Co., Ltd. a Medtronic company | H1219: Instrumentai, skirti darbui su užrakinamų titaninių plokštelių sistema, naudojama su Ø 3,5 mm sraigtais.
A1220: 3.68.1. | B1220: Konteineris instrumentų sterilizavimui - 1 vnt
A1221: 3.68.2. | B1221: Dėklas 3,5 mm ir 4,0 mm skersmens sraigtams, įstatomas į instrumentų ir sraigtų sterilizavimo konteinerį, su sraigtų ilgio matuokle - 1 vnt
A1222: 3.68.3. | B1222: Universalus (dvipusis) grąžto kreiptuvas, tinkantis Ø 2,5 ir 3,5 mm grąžtams - 1 vnt
A1223: 3.68.4. | B1223: Dvipusis Ø 2,5 mm grąžto kreiptuvas su išcentruota anga viename iš dviejų kreiptuvo galų - 1 vnt
A1224: 3.68.5. | B1224: Instrumentas sraigto su prasukta galvute išėmimui, tinkantis 3,5 mm ir 4,0 mm skersmens sraigtams - 1 vnt
A1225: 3.68.6. | B1225: Grąžtas Ø 3,5 mm - 2 vnt
A1226: 3.68.7. | B1226: Grąžtas Ø 2,6 mm - 2 vnt
A1227: 3.68.8. | B1227: Grąžtas Ø 2,5 mm - 2 vnt
A1228: 3.68.9. | B1228: Aštrios žnyplės lūžgalių repozicijai ir fiksacijai, 145 mm ilgio, dantytais galais - 2 vnt
A1229: 3.68.10. | B1229: Aštrios žnyplės lūžgalių reparacijai ir fiksacijai, siauros, smailais galais - 1 vnt
A1230: 3.68.11. | B1230: Kiaurymės gylio matuoklis, matavimo skalė 0÷60 mm - 1 vnt
A1231: 3.68.12. | B1231: Trepanas lūžusio sraigto pašalinimui, Ø 6 mm - 1 vnt
A1232: 3.68.13. | B1232: Sriegiklis Ø 4,0 mm - 1 vnt
A1233: 3.68.14. | B1233: Sriegiklis Ø 3,5 mm - 1 vnt
A1234: 3.68.15. | B1234: Lenkikliai plokštelei, komplekte 2 vnt. - 1 vnt
A1235: 3.68.16. | B1235: Šešiabriaunis atsuktuvas, 195 mm ilgio, atstumas tarp šešiabriaunio plokštumų 2,5 mm - 1 vnt
A1236: 3.68.17. | B1236: Ø 3,5 mm kortikalinių sraigtų laikymo įvorė atsuktuvui - 1 vnt
A1237: 3.68.18. | B1237: Žnyplės, skirtos kaulo ir plokštelės fiksacijai, dantytais galais, 190 mm ilgio - 1 vnt
A1238: 3.68.19. | B1238: Ø 2,6 mm grąžto nukreipiklis, 60 mm ilgio - 2 vnt
A1239: 3.68.20. | B1239: Grąžtas su atrama gręžimo gylio apribojimui, Ø 2,6 mm, su gylio matavimo skale 12 ÷ 60 mm - 2 vnt
A1240: 3.68.21. | B1240: Ø 1,2 mm "Kiršnerio" vielų nukreipiklis - 1 vnt
A1241: 3.68.22. | B1241: Šešiakampės žvaigždės formos atsuktuvas Ø 3,5 mm užrakinamiems sraigtams, apribojantis priveržimo jėgą - 1 vnt
A1242: 3.68.23. | B1242: Užrakinamų sraigtų laikymo įvorė atsuktuvui - 1 vnt
A1243: 3.68.24. | B1243: Šešiakampės žvaigždės T formos atsuktuvas, skirtas užrakinamų sraigtų išsukimui - 1 vnt
A1244: 3.68.25. | B1244: Lenktas raktas su šešiakampiu galu, atstumas tarp šešiabriaunio plokštumų 2,5 mm - 1 vnt
A1245: 3.68.26. | B1245: Grąžtas metalui, skirtas prasukto sraigto galvutės nugręžimui - 1 vnt
A1246: 3.68.27. | B1246: Atsuktuvas 3,5 mm užrakinamiems sraigtams, įsistatantis į elektrinį jėgos instrumentą - 1 vnt
A1247: 3.68.28. | B1247: Kiršnerio viela su sriegiu ir aštriu trikampiu išgalandinimu, Ø 1,2 mm, 220 mm ilgio - 3 vnt
A1248: 3.69. | B1248: Instrumentai, skirti darbui su užrakinamų titaninių plokštelių sistema, naudojama su Ø 5,0 mm užrakinamais sraigtais. Privaloma pateikti 1 rinkinį. Vieno rinkinio sudėtis: | C1248: 1 | D1248: rinkinys | E1248: 0 | F1248: =IF(ISBLANK(E1248),"", PRODUCT(C1248,E1248)) -> 0 | G1248: 227900, katalogas 1, p. 95, Changzhou Kanghui Medical Innovation Co., Ltd. a Medtronic company | H1248: Instrumentai, skirti darbui su užrakinamų titaninių plokštelių sistema, naudojama su Ø 5,0 mm užrakinamais sraigtais
A1249: 3.69.1. | B1249: Konteineris, skirtas instrumentų ir sraigtų sterilizavimui - 1 vnt
A1250: 3.69.2. | B1250: Dėklas Ø 4,5 mm, 5,0 mm ir 6,5 mm sraigtams, įstatomas į instrumentų ir sraigtų sterilizavimo konteinerį; su sraigtų ilgio matuokle - 1 vnt
A1251: 3.69.3. | B1251: Plokštelių sterilizavimo konteineris - 1 vnt
... 32 more rows

Sheet Subtiekėjai
A2: Subtiekėjai ir jiems perduodama vykdyti pirkimo sutarties dalis:
A4: Eil. Nr | C4: Subtiekėjo pavadinimas | F4: Pirkimo objekto dalies, perduodamos vykdyti subtiekėjui, aprašymas | I4: Procentas perduodamos vykdyti pirkimo objekto dalies nuo pasiūlymo kainos su PVM (pildoma, jei ūkio subjektas vykdys sutartį)
A11: Kartu su pasiūlymu pateikiami šie dokumentai:
A13: Eil.Nr. | B13: Dokumentas | E13: Ar dokumnetas konfidencialus? (Taip/Ne) | G13: Prisegtos bylos (failo) pavadinimas | I13: Paaiškinimas, kokia konkreti informacija dokumente yra konfidenciali
A14: 1 | B14: EBVPD | E14: Ne | G14: EBVPD
A15: 2 | B15: Katalogas 1 | E15: Taip | G15: Katalogas 1 - KONFIDENCIALU | I15: Prekių parametrai
A16: 3 | B16: Katalogas 2 | E16: Taip | G16: Katalogas 2 - KONFIDENCIALU | I16: Prekių parametrai
A17: 4 | B17: Katalogas 3 | E17: Taip | G17: Katalogas 3 - KONFIDENCIALU | I17: Prekių parametrai
A18: 5 | B18: Katalogas 4 | E18: Taip | G18: Katalogas 4 - KONFIDENCIALU | I18: Prekių parametrai
A20: Pasirašydamas šį pasiūlymą, tvirtintu, kad: 1) pasiūlymo dokumentuose pateikti duomenys yra tikri; 2) siūlomas Pirkimo objektas visiškai atitinka Pirkimo dokumentuose nustatytus reikalavimus; 3) sutinku su visomis Pirkimo dokumentuose nustatytomis sąlygomis; 4) pasiūlymas galioja iki termino, nustatyto Pirkimo dokumentuose; 5) mes esame / nesame (nereikalingą išbraukti) laikomi asocijuotais (susijusiais) su Perkančiuoju subjektu pagal Lietuvos Respublikoje galiojančių teisės aktų (Lietuvos Respublikos pelno mokesčio, Lietuvos Respublikos pridėtinės vertės mokesčio ir Lietuvos Respublikos gyventojų pajamų mokesčio įstatymų) nuostatas; 6) savo pasiūlymo galiojimą užtikrinsiu pagal Specialiųjų sąlygų 6.1 punktą (jei taikoma).
A22: Pasiūlymo galiojimo užtikrinimui pateikiame :
A24: (Nurodyti užtikrinimo būdą, dydį, dokumentus)
A26: Pasiūlymas galioja iki termino, nustatyto pirkimo dokumentuose. Pasiūlymo neatskiriama dalis yra (rašoma, jeigu buvo reikalauta prie pasiūlymo pridėti atitinkamą dokumentą)
A30: Tiekėjo arba jo įgalioto asmens pareigų pavadinimas | E30: Direktorius
A33: Pasirašančio asmens vardas ir pavardė | E33: Gintaras Vaitkevičius
A100: 3410-2 2019-07-10 14:39:34
